bitfinex-derivatives/quotes_ETHF0:USTF0_20241024
["timestamp","ask_amount","ask_price","bid_price","bid_amount"]
[1729730624074,0.80048,2523.7,2523.6,1.82545398]
[1729730624274,0.86844015,2523.7,2523.6,1.82545398]
[1729730624772,0.86844001,2523.7,2523.6,1.82545398]
[1729730624974,0.80048,2523.7,2523.6,1.82545398]
[1729730625273,0.80048,2523.7,2523.6,2.74545398]
[1729730626665,0.80048,2523.7,2523.6,2.34886398]
[1729730626863,0.80048,2523.7,2523.6,1.42886398]
[1729730627069,0.39662,2523.4,2523.3,0.4094]
[1729730627274,0.39662,2523.4,2523.3,2.74548398]
[1729730627773,0.4328,2523.4,2523.3,2.74548398]
[1729730629774,0.82942,2523.4,2523.3,2.74548398]
[1729730630370,0.82942,2523.4,2523.3,2.34886398]
[1729730630875,0.82942,2523.4,2523.3,2.74550398]
[1729730631079,0.4328,2523.4,2523.3,1.82550398]
[1729730631280,0.82942,2523.4,2523.3,1.82550398]
[1729730631972,0.4328,2523.4,2523.3,1.82550398]
[1729730632366,0.8176,2523.6,2523.5,0.39661]
[1729730632579,0.8552,2523.6,2523.5,1.82547398]
[1729730632966,0.8552,2523.6,2523.5,2.23717398]
[1729730635379,1.25179,2523.6,2523.5,2.23717398]
[1729730635577,3.2078,2523.8,2523.7,0.39658]
[1729730635779,0.39656,2523.8,2523.7,1.82544398]
[1729730637082,1.23373,2524.0,2523.9,0.39654]
[1729730637281,1.23373,2524.0,2523.9,1.82540398]
[1729730637477,5.19613,2524.0,2523.9,1.82540398]
[1729730637675,1.23373,2524.0,2523.9,1.82540398]
[1729730638370,0.8372,2524.0,2523.9,1.42886398]
[1729730638586,0.8372,2524.0,2523.9,1.82540398]
[1729730639885,1.23373,2524.0,2523.9,1.82540398]
[1729730640384,1.23373,2524.0,2523.9,1.42886398]
[1729730640791,1.23373,2524.0,2523.9,1.82540398]
[1729730640975,1.23373,2524.0,2523.9,1.42886398]
[1729730641175,1.23373,2524.0,2523.9,1.82540398]
[1729730641380,1.23373,2524.0,2523.9,1.42886398]
[1729730641584,6.22846398,2524.0,2523.4,1.03532209]
[1729730641784,3.60436,2523.8,2523.7,1.42886398]
[1729730644384,3.2078,2523.8,2523.7,1.82544398]
[1729730644686,0.39656,2523.9,2523.8,0.39655]
[1729730644880,0.39656,2523.9,2523.8,1.82541398]
[1729730645878,0.39656,2523.9,2523.8,1.42886398]
[1729730646088,1.82542398,2523.9,2523.8,1.42886398]
[1729730646288,1.82542398,2523.9,2523.8,1.82542398]
[1729730647785,0.411,2524.0,2523.9,0.39654]
[1729730648085,4.59963315,2524.0,2523.9,0.39654]
[1729730648282,8.56203315,2524.0,2523.8,1.42886398]
[1729730648487,0.46450784,2523.9,2523.8,1.82542398]
[1729730650778,1.49683361,2523.9,2523.6,2.80344398]
[1729730650979,0.39658,2523.7,2523.6,1.82544398]
[1729730651186,0.4645499,2523.7,2523.6,1.82544398]
[1729730651481,0.8847499,2523.7,2523.6,1.82544398]
[1729730652891,0.8847499,2523.7,2523.6,1.42886398]
[1729730653285,0.8847499,2523.7,2523.6,1.82545398]
[1729730654693,0.81678,2523.7,2523.6,1.82545398]
[1729730654895,0.88476048,2523.7,2523.6,1.82545398]
[1729730655088,0.81678,2523.7,2523.6,1.82545398]
[1729730655392,3.2078,2523.8,2523.6,1.42886398]
[1729730655591,4.0207,2524.1,2523.7,1.42886398]
[1729730655788,4.41721,2524.1,2524.0,1.82539398]
[1729730656093,8.64516025,2524.1,2524.0,1.42886398]
[1729730656293,8.44679595,2524.1,2524.0,1.42886398]
[1729730656491,12.94479896,2524.1,2524.0,1.42886398]
[1729730656787,14.37366294,2524.1,2524.0,1.42886398]
[1729730657093,0.39656,2523.8,2523.7,1.42886398]
[1729730657685,3.60436,2523.8,2523.7,1.82544398]
[1729730657891,3.60436,2523.8,2523.7,1.42886398]
[1729730658495,3.60436,2523.8,2523.7,1.82544398]
[1729730658683,3.60436,2523.8,2523.7,1.42886398]
[1729730661293,3.60436,2523.8,2523.7,1.82544398]
[1729730662189,3.60436,2523.8,2523.7,1.42886398]
[1729730662388,3.60436,2523.8,2523.7,1.82544398]
[1729730663997,3.60436,2523.8,2523.7,1.42886398]
[1729730664296,3.60436,2523.8,2523.7,1.82544398]
[1729730668091,3.2078,2523.8,2523.7,1.82544398]
[1729730668699,0.39653,2524.0,2523.9,0.39654]
[1729730668894,0.39653,2524.0,2523.9,1.82540398]
[1729730669897,4.0207,2524.1,2523.9,1.42886398]
[1729730669898,3.2078,2524.1,2523.9,1.42886398]
[1729730670193,3.2078,2524.1,2524.0,1.82539398]
[1729730670194,4.42471,2524.1,2524.0,1.82539398]
[1729730671801,1.21691,2524.1,2524.0,1.82539398]
[1729730671998,4.42471,2524.1,2524.0,1.82539398]
[1729730672404,4.02571,2524.1,2524.0,1.82539398]
[1729730672902,3.6292,2524.1,2524.0,1.82539398]
[1729730674804,0.81791,2524.1,2524.0,1.82539398]
[1729730675103,4.02571,2524.1,2524.0,1.82539398]
[1729730675496,3.6292,2524.1,2524.0,1.82539398]
[1729730675897,4.02571,2524.1,2523.8,0.8376]
[1729730676104,4.02571,2524.1,2524.0,1.82539398]
[1729730676505,4.02571,2524.1,2524.0,1.42886398]
[1729730677603,4.02571,2524.1,2524.0,1.82539398]
[1729730677804,4.02571,2524.1,2524.0,1.42886398]
[1729730678001,4.02571,2524.1,2524.0,1.82539398]
[1729730678402,4.09372685,2524.1,2524.0,1.82539398]
[1729730678597,3.67232685,2524.1,2524.0,1.82539398]
[1729730678808,3.60431,2524.1,2524.0,1.82539398]
[1729730679104,3.74034968,2524.1,2524.0,1.82539398]
[1729730680305,0.39654,2524.0,2523.9,0.39653]
[1729730680605,0.431,2524.0,2523.9,1.82539398]
[1729730680802,0.82753,2524.0,2523.9,1.82539398]
[1729730681207,0.431,2524.0,2523.9,1.82539398]
[1729730681404,3.67233982,2524.1,2523.9,1.42886398]
[1729730681606,3.67233982,2524.1,2524.0,1.82539398]
[1729730681804,3.74036045,2524.1,2524.0,1.82539398]
[1729730682810,3.67233982,2524.1,2524.0,1.82539398]
[1729730683007,0.53256091,2524.1,2524.0,1.82539398]
[1729730683604,3.67234169,2524.1,2524.0,1.82539398]
[1729730684001,3.67234504,2524.1,2524.0,1.82539398]
[1729730685109,3.67234877,2524.1,2524.0,1.82539398]
[1729730685511,3.60432,2524.1,2524.0,1.82539398]
[1729730685901,0.39652,2524.1,2524.0,1.82539398]
[1729730686411,3.60432,2524.1,2524.0,1.82539398]
[1729730687110,0.39652,2524.1,2524.0,1.82539398]
[1729730687306,3.60432,2524.1,2524.0,1.82539398]
[1729730688710,3.2078,2524.1,2524.0,1.82539398]
[1729730695716,2.26135398,2524.3,2524.2,0.3965]
[1729730695913,5.46915398,2524.3,2524.2,1.82536398]
[1729730697820,3.6438,2524.3,2524.2,1.82536398]
[1729730698523,3.2078,2524.3,2524.2,1.82536398]
[1729730698723,3.2078,2524.3,2524.2,2.23736398]
[1729730701528,3.2078,2524.3,2524.2,6.19896398]
[1729730701724,0.8677,2524.4,2524.3,0.39648]
[1729730701937,0.8677,2524.4,2524.3,1.82534398]
[1729730702225,0.9357537,2524.4,2524.3,2.78334398]
[1729730702425,0.9909,2525.1,2524.3,2.78334398]
[1729730702426,3.2078,2525.2,2524.3,8.76853796]
[1729730702633,3.2078,2525.2,2525.1,3.25408796]
[1729730702928,7.76114989,2525.2,2525.1,1.42886398]
[1729730703115,3.2078,2525.2,2525.1,1.42886398]
[1729730703531,3.67217854,2525.2,2525.1,1.82522398]
[1729730703718,3.27583854,2525.2,2525.1,1.82522398]
[1729730703915,3.69823854,2525.2,2525.1,1.82522398]
[1729730704114,0.4224,2525.2,2525.1,1.82522398]
[1729730704519,0.48941524,2525.2,2525.1,1.42886398]
[1729730704721,0.48941524,2525.2,2525.1,2.78322398]
[1729730705114,0.88575524,2525.2,2525.1,2.78322398]
[1729730705316,0.48941524,2525.2,2525.1,2.78322398]
[1729730705525,0.88575524,2525.2,2525.1,2.78322398]
[1729730706320,0.39636,2525.1,2525.0,0.39636]
[1729730706526,0.39636,2525.1,2525.0,1.42886398]
[1729730706723,0.39636,2525.1,2524.9,0.958]
[1729730706724,0.39637,2525.0,2524.9,2.38686398]
[1729730708027,0.39637,2525.0,2524.9,2.78325398]
[1729730708428,0.39637,2525.0,2524.9,2.38686398]
[1729730709023,4.80766874,2525.1,2525.0,0.39637]
[1729730709225,4.80766874,2525.1,2525.0,1.82523398]
[1729730709821,4.39976874,2525.1,2525.0,1.82523398]
[1729730710029,0.4224,2525.2,2525.1,0.39636]
[1729730710330,0.4224,2525.2,2525.1,1.82522398]
[1729730711537,0.4224,2525.2,2525.1,3.25408796]
[1729730711931,0.4224,2525.2,2525.1,1.82522398]
[1729730712134,0.4224,2525.2,2525.1,3.25408796]
[1729730712326,0.4224,2525.2,2525.1,1.82522398]
[1729730712631,0.4224,2525.2,2525.1,7.21408796]
[1729730713839,3.2078,2525.5,2525.4,0.39631]
[1729730714036,3.2078,2525.5,2525.4,6.74517398]
[1729730714340,0.3993,2525.7,2525.6,0.39628]
[1729730714530,0.3993,2525.7,2525.6,1.82514398]
[1729730715135,0.3993,2525.7,2525.6,2.24534398]
[1729730715646,0.4185,2526.0,2525.9,0.39623]
[1729730715935,0.4185,2526.0,2525.9,1.82509398]
[1729730716134,0.4185,2526.0,2525.9,2.78509398]
[1729730716925,0.8569,2526.0,2525.9,2.78509398]
[1729730717632,0.4384,2526.0,2525.9,2.78509398]
[1729730720535,0.4384,2526.0,2525.9,4.21395796]
[1729730721239,3.2078,2526.2,2526.1,0.3962]
[1729730721440,3.2078,2526.2,2526.1,1.82506398]
[1729730726331,0.80956,2526.4,2526.3,0.39617]
[1729730726535,0.80956,2526.4,2526.3,1.82503398]
[1729730726732,4.01736,2526.4,2526.3,1.42886398]
[1729730727539,0.39617,2526.3,2526.2,1.35518]
[1729730727836,0.39617,2526.3,2526.2,2.78404398]
[1729730728938,0.39617,2526.3,2526.2,2.38786398]
[1729730729241,0.39617,2526.3,2526.2,2.78404398]
[1729730729439,0.39617,2526.3,2526.0,0.4118]
[1729730729440,0.3962,2526.1,2526.0,0.4118]
[1729730729641,0.3962,2526.1,2526.0,3.19587398]
[1729730730735,0.3962,2526.1,2526.0,2.23687398]
[1729730730944,0.3962,2526.1,2526.0,3.19587398]
[1729730731247,0.8351,2526.2,2526.1,0.3962]
[1729730731540,0.8351,2526.2,2526.1,1.42886398]
[1729730731743,0.8351,2526.2,2526.1,1.82506398]
[1729730733752,0.4389,2526.2,2526.1,1.82506398]
[1729730734145,4.44936,2526.4,2526.3,0.39617]
[1729730734451,4.44936,2526.4,2526.3,1.82503398]
[1729730739046,4.44936,2526.4,2526.3,1.42886398]
[1729730739244,4.44936,2526.4,2526.2,0.936]
[1729730739245,0.39617,2526.3,2526.2,0.936]
[1729730739439,0.39617,2526.3,2526.2,2.36486398]
[1729730739645,0.39617,2526.3,2526.2,2.76104398]
[1729730740965,4.0532,2526.4,2526.3,0.39617]
[1729730741157,4.44935,2526.4,2526.3,1.82503398]
[1729730741753,0.8454,2526.4,2526.3,1.82503398]
[1729730742143,0.4134,2526.4,2526.3,6.21313398]
[1729730742347,3.2078,2526.7,2526.6,0.39612]
[1729730742648,0.06704313,2526.7,2526.6,1.82498398]
[1729730742839,0.4269,2526.8,2526.7,0.3961]
[1729730743043,0.49393821,2526.8,2526.7,3.19066398]
[1729730743251,0.4269,2526.8,2526.7,3.19066398]
[1729730743551,3.6241,2527.0,2526.7,2.79456398]
[1729730743752,0.4038,2526.9,2526.8,0.39609]
[1729730743949,0.4038,2526.9,2526.8,0.81139]
[1729730744148,0.4038,2526.9,2526.8,2.24025398]
[1729730744550,0.79987,2526.9,2526.8,2.24025398]
[1729730744847,0.4038,2526.9,2526.8,2.24025398]
[1729730747347,0.39607,2526.9,2526.8,2.24025398]
[1729730747552,3.6241,2527.0,2526.9,0.39607]
[1729730747748,3.6241,2527.0,2526.9,1.82493398]
[1729730752352,3.2078,2527.0,2526.9,1.82493398]
[1729730752551,4.139,2529.3,2527.3,0.396]
[1729730752552,0.82199,2527.5,2527.3,0.396]
[1729730752761,0.82199,2527.5,2527.4,2.36486398]
[1729730753264,0.82199,2527.5,2527.4,1.42886398]
[1729730753468,0.82199,2527.5,2527.4,2.36486398]
[1729730753650,0.82199,2527.5,2527.4,4.18971796]
[1729730753651,0.426,2527.5,2527.4,4.18971796]
[1729730754262,3.2078,2527.6,2527.5,0.39598]
[1729730754460,3.2078,2527.6,2527.5,1.82484398]
[1729730754656,3.2078,2527.6,2527.5,5.78164398]
[1729730754862,3.2078,2527.6,2527.5,1.33198]
[1729730755161,3.2078,2527.6,2527.5,4.18970796]
[1729730755569,8.59346398,2527.6,2526.9,3.2078]
[1729730755767,8.59346398,2527.6,2527.3,1.42886398]
[1729730755768,1.42886398,2527.5,2527.3,1.42886398]
[1729730755957,0.412,2527.4,2527.3,0.936]
[1729730756163,0.80799,2527.4,2527.3,2.36486398]
[1729730757057,0.80799,2527.4,2527.3,1.42886398]
[1729730757258,0.80799,2527.4,2527.3,2.36486398]
[1729730757454,0.80881944,2527.4,2527.3,2.36486398]
[1729730758269,0.80881944,2527.4,2527.3,0.936]
[1729730759661,0.80881944,2527.4,2527.2,0.39603]
[1729730759662,0.39601,2527.3,2527.2,0.82953]
[1729730759870,1.24301,2527.3,2527.2,1.76553]
[1729730762470,1.24301,2527.3,2527.2,1.7696]
[1729730762670,1.24301,2527.3,2527.2,1.3695]
[1729730763474,1.24301,2527.3,2527.2,1.76553]
[1729730763876,1.24301,2527.3,2527.2,1.3695]
[1729730764071,1.24301,2527.3,2527.2,1.76553]
[1729730764672,0.00082944,2527.4,2527.2,1.3695]
[1729730764862,0.00082944,2527.4,2527.3,7.84234778]
[1729730765066,3.2078,2528.0,2527.9,0.39592]
[1729730765282,3.2078,2528.0,2527.9,4.42365778]
[1729730765572,3.2078,2528.0,2527.9,0.936]
[1729730765769,3.6037,2528.0,2527.9,0.936]
[1729730765963,3.2078,2528.0,2527.9,0.936]
[1729730766166,3.2078,2528.0,2527.9,3.48765778]
[1729730766362,3.2078,2528.0,2527.9,4.42365778]
[1729730766965,3.2078,2528.0,2527.9,8.37965778]
[1729730767164,3.2078,2528.0,2527.9,4.42365778]
[1729730767471,3.2078,2528.0,2527.9,8.37965778]
[1729730772472,3.2078,2528.6,2527.9,8.37965778]
[1729730772674,0.3958,2528.7,2528.5,3.48755778]
[1729730772874,0.3958,2528.7,2528.6,1.33281]
[1729730773069,0.46278223,2528.7,2528.6,0.937]
[1729730775970,0.3958,2528.7,2528.6,0.937]
[1729730776173,0.4079,2528.8,2528.6,0.937]
[1729730776480,0.80368,2528.8,2528.6,1.33279]
[1729730776681,0.4079,2528.8,2528.7,3.48752778]
[1729730776882,0.4079,2528.8,2528.7,3.91322778]
[1729730777278,0.4058,2529.0,2528.7,7.47183778]
[1729730777481,0.39573,2529.1,2528.9,3.09173778]
[1729730777681,0.39573,2529.1,2529.0,0.39574]
[1729730778784,0.39573,2529.1,2528.9,3.48748778]
[1729730778977,0.39573,2529.1,2529.0,0.39574]
[1729730779383,0.39571,2529.2,2528.9,3.48748778]
[1729730779576,0.39574,2529.1,2528.9,3.48748778]
[1729730779878,0.39572,2529.2,2529.0,0.39574]
[1729730780081,0.39572,2529.2,2529.1,0.937]
[1729730780679,0.39571,2529.2,2529.1,4.42445778]
[1729730780883,0.39571,2529.2,2529.1,4.02873778]
[1729730783484,0.39571,2529.2,2529.1,0.937]
[1729730784777,0.8551,2529.3,2528.9,0.39575]
[1729730785086,0.39579,2528.8,2528.5,3.09173778]
[1729730785281,0.8099,2528.7,2528.6,1.33281]
[1729730786781,0.39577,2528.9,2528.7,0.39579]
[1729730786990,0.39576,2528.9,2528.7,3.48752778]
[1729730787289,0.39578,2528.8,2528.7,3.48752778]
[1729730787596,0.82868,2528.8,2528.7,3.48752778]
[1729730788285,0.4329,2528.8,2528.7,3.48752778]
[1729730789590,0.82868,2528.8,2528.7,3.48752778]
[1729730789784,0.4329,2528.8,2528.7,3.48752778]
[1729730791591,0.82868,2528.8,2528.7,3.48752778]
[1729730792293,0.82868,2528.8,2528.7,3.09173778]
[1729730792491,0.82868,2528.8,2528.7,3.48752778]
[1729730792686,0.23451139,2528.8,2528.7,3.09173778]
[1729730793582,0.4362,2529.0,2528.7,4.02873778]
[1729730793788,0.39577,2528.9,2528.8,0.39577]
[1729730793985,0.39577,2528.9,2528.8,1.33277]
[1729730794585,0.39577,2528.9,2528.8,0.937]
[1729730795486,0.39577,2528.9,2528.7,3.48751778]
[1729730795487,0.39578,2528.8,2528.7,3.48751778]
[1729730795697,0.81477,2528.9,2528.8,0.937]
[1729730796493,0.39578,2528.8,2528.7,3.09173778]
[1729730796686,0.39578,2528.8,2528.7,4.42452778]
[1729730797086,0.4258,2528.8,2528.7,3.48752778]
[1729730797287,0.4258,2528.8,2528.7,4.42452778]
[1729730797288,0.82158,2528.8,2528.7,4.42452778]
[1729730798989,0.4258,2528.8,2528.7,4.42452778]
[1729730799192,0.4258,2528.8,2528.7,3.48752778]
[1729730799388,0.82158,2528.8,2528.7,4.44752778]
[1729730799596,0.4258,2528.8,2528.7,4.44752778]
[1729730799999,0.4362,2529.0,2528.7,4.05173778]
[1729730800000,0.83196,2529.0,2528.7,4.05173778]
[1729730800297,1.23856,2529.0,2528.9,1.82181226]
[1729730801591,0.8428,2529.0,2528.9,1.82181226]
[1729730801788,0.4362,2529.0,2528.9,7.20226452]
[1729730801989,0.4362,2529.0,2528.9,5.77621226]
[1729730802193,0.4362,2529.0,2528.9,7.20226452]
[1729730802990,0.4362,2529.0,2528.9,4.35016]
[1729730803298,0.83194,2529.0,2528.9,0.96]
[1729730803498,0.83194,2529.0,2528.9,2.38605226]
[1729730803695,1.26184,2529.0,2528.9,2.38605226]
[1729730804202,1.26184,2529.0,2528.9,1.42605226]
[1729730804396,1.26184,2529.0,2528.9,2.38605226]
[1729730804797,0.83194,2529.0,2528.9,2.38605226]
[1729730805004,0.4362,2529.0,2528.9,2.78181226]
[1729730805396,0.83194,2529.0,2528.9,2.78181226]
[1729730806306,0.83194,2529.0,2528.9,1.35576]
[1729730806999,0.83194,2529.0,2528.9,0.96]
[1729730807204,0.83194,2529.0,2528.9,1.35576]
[1729730807401,0.39576,2528.9,2528.8,0.80267]
[1729730807604,0.39576,2528.9,2528.8,1.76267]
[1729730807806,0.82066,2528.9,2528.8,1.76267]
[1729730808103,0.39576,2528.9,2528.8,2.17187]
[1729730809605,0.83195,2529.0,2528.9,0.39576]
[1729730811205,0.4362,2529.0,2528.9,1.35576]
[1729730811804,0.4362,2529.0,2528.9,4.44552494]
[1729730812207,4.19698,2529.5,2528.9,4.04976494]
[1729730812503,0.39572,2529.2,2529.1,0.39572]
[1729730813007,0.39574,2529.1,2529.0,0.39573]
[1729730813410,5.2072217,2529.4,2528.9,4.04976494]
[1729730813710,5.2072217,2529.4,2529.1,0.39571]
[1729730813711,0.39572,2529.2,2529.1,0.39571]
[1729730814806,0.39572,2529.2,2529.1,1.35571]
[1729730815112,8.26680989,2534.4,2529.1,1.35571]
[1729730815113,3.2078,2529.9,2529.1,11.09312988]
[1729730815405,4.01921,2529.9,2529.7,3.48539494]
[1729730815606,4.01921,2529.9,2529.7,4.44539494]
[1729730816015,4.01921,2529.9,2529.7,8.39819494]
[1729730816206,3.25448587,2530.7,2529.7,8.39819494]
[1729730816207,20.624,2537.2,2532.0,19.677]
[1729730816406,20.624,2537.2,2533.5,3.08976494]
[1729730816407,3.2078,2533.7,2533.5,3.08976494]
[1729730816629,3.2078,2533.7,2532.8,4.82994]
[1729730816630,0.39506,2533.4,2532.8,4.82994]
[1729730816805,4.28262703,2533.6,2533.3,3.2078]
[1729730817004,3.27473518,2534.3,2533.4,3.9472]
[1729730817203,3.27473518,2534.3,2533.6,3.2078]
[1729730817503,0.98669,2535.9,2535.3,1.81884]
[1729730817708,6.8156,2535.4,2534.4,1.227]
[1729730818013,7.21035,2535.4,2535.3,2.38096]
[1729730818204,3.2078,2536.9,2536.2,0.39462]
[1729730818404,3.2078,2536.9,2534.3,1.54166784]
[1729730818405,2.38298,2535.8,2535.6,3.2078]
[1729730818704,2.38298,2535.7,2535.2,3.2078]
[1729730818905,2.38298,2535.7,2534.6,5.23700968]
[1729730818906,3.2078,2535.5,2534.6,2.85402968]
[1729730819100,0.39473,2535.5,2534.6,3.79184468]
[1729730819412,4.48089301,2535.7,2534.8,3.2078]
[1729730819605,0.39478,2535.3,2534.8,3.2078]
[1729730819802,3.82541906,2535.4,2534.9,3.79184468]
[1729730819803,3.23229966,2535.4,2534.9,3.79184468]
[1729730820012,4.48396597,2535.6,2535.3,3.79184468]
[1729730820221,3.2078,2535.8,2535.5,3.79184468]
[1729730820402,0.3947,2535.7,2535.5,3.79184468]
[1729730820604,3.2078,2535.8,2535.5,3.79184468]
[1729730820809,4.57233244,2535.6,2535.3,3.2078]
[1729730821001,4.57233244,2535.6,2535.5,3.79184468]
[1729730821217,3.2078,2536.7,2535.5,7.73584468]
[1729730821412,3.2078,2536.7,2536.4,3.79184468]
[1729730821822,0.39457,2536.5,2536.4,3.79184468]
[1729730822013,7.8925936,2536.6,2535.7,3.2078]
[1729730822321,3.2078,2536.3,2535.7,3.2078]
[1729730822519,0.39463,2536.2,2535.7,3.2078]
[1729730822712,0.39459,2536.5,2536.0,3.2078]
[1729730823116,3.2078,2537.0,2536.1,3.2078]
[1729730823311,0.39456,2536.6,2536.2,3.79184468]
[1729730823727,0.39459,2536.4,2536.2,3.79184468]
[1729730823920,0.39459,2536.4,2535.9,3.79184468]
[1729730824131,3.2078,2536.8,2535.9,7.73504468]
[1729730824334,0.39458,2536.5,2536.1,3.2078]
[1729730824725,0.39455,2536.7,2536.4,3.2078]
[1729730824924,3.2078,2537.1,2536.5,3.79184468]
[1729730825122,0.39445,2537.4,2537.0,6.99964468]
[1729730825425,3.21288898,2538.0,2537.4,3.79184468]
[1729730825634,0.39443,2537.4,2537.3,3.2078]
[1729730825821,0.39443,2537.4,2535.1,3.2078]
[1729730825822,3.2078,2536.9,2535.1,3.2078]
[1729730826022,3.2078,2536.9,2533.9,0.19740939]
[1729730826023,0.39465,2536.0,2535.9,2.901584]
[1729730826734,3.60245,2536.1,2535.9,2.901584]
[1729730826932,3.2078,2536.1,2536.0,2.901584]
[1729730827630,11.37702822,2536.1,2535.1,1.65]
[1729730827934,3.2078,2535.6,2535.4,2.901584]
[1729730828131,3.60252,2535.6,2535.4,2.901584]
[1729730828433,0.39473,2535.5,2535.4,2.901584]
[1729730829129,3.60252,2535.6,2535.4,2.901584]
[1729730829437,3.2078,2535.6,2535.5,2.901584]
[1729730829728,3.79184468,2536.3,2535.5,2.901584]
[1729730829729,0.39468,2535.8,2535.5,2.901584]
[1729730829931,3.2078,2535.7,2534.8,3.2078]
[1729730830125,0.3948,2535.1,2535.0,2.901584]
[1729730830325,3.79184468,2535.5,2535.0,2.901584]
[1729730830527,4.38422537,2535.7,2535.0,2.901584]
[1729730830528,0.39477,2535.3,2535.0,2.901584]
[1729730830729,0.39476,2535.3,2535.1,2.901584]
[1729730830927,4.25790967,2535.6,2535.2,2.901584]
[1729730831131,3.2078,2535.8,2535.7,2.901584]
[1729730831432,0.39468,2535.9,2535.7,2.901584]
[1729730831628,0.39468,2535.8,2535.7,2.901584]
[1729730831933,3.2078,2536.2,2536.1,2.901584]
[1729730832126,0.39462,2536.2,2536.1,2.901584]
[1729730832830,3.2078,2536.6,2536.1,2.901584]
[1729730833037,0.39462,2536.3,2536.2,2.901584]
[1729730833239,0.39462,2536.3,2535.9,3.2078]
[1729730833240,4.5725977,2536.5,2536.3,2.901584]
[1729730833434,0.39459,2536.4,2536.3,2.901584]
[1729730833824,0.39467,2535.9,2535.5,3.2078]
[1729730834029,3.9424,2536.4,2535.7,2.901584]
[1729730834030,0.39468,2535.8,2535.7,2.901584]
[1729730834236,6.99964468,2536.3,2535.7,2.901584]
[1729730834432,0.39472,2535.8,2535.7,2.901584]
[1729730834636,0.39468,2536.1,2535.7,2.901584]
[1729730834839,4.19964563,2536.2,2535.8,2.901584]
[1729730834840,0.39471,2535.9,2535.8,2.901584]
[1729730835034,4.19964563,2536.2,2536.1,2.901584]
[1729730835240,0.39466,2536.2,2536.1,2.901584]
[1729730836131,3.2078,2536.6,2536.1,2.901584]
[1729730836330,3.2078,2536.6,2536.5,2.901584]
[1729730836732,0.98618,2537.5,2536.5,2.901584]
[1729730836733,3.2078,2537.2,2536.5,2.901584]
[1729730836925,0.39452,2537.1,2536.9,2.901584]
[1729730837130,0.39454,2537.0,2536.9,2.901584]
[1729730837330,3.2078,2537.2,2536.9,2.901584]
[1729730837627,0.39454,2537.0,2536.9,2.901584]
[1729730838235,0.39463,2536.4,2536.3,3.2078]
[1729730838525,3.9416,2537.0,2536.4,2.901584]
[1729730838526,3.2078,2536.5,2536.4,2.901584]
[1729730838734,3.2078,2536.8,2536.7,2.901584]
[1729730838934,3.60237,2536.8,2536.7,2.901584]
[1729730840544,0.8708,2537.3,2536.7,2.901584]
[1729730840545,0.39453,2537.1,2536.7,2.901584]
[1729730840843,0.8708,2537.3,2536.7,2.901584]
[1729730840844,0.3945,2537.2,2537.1,2.901584]
[1729730841138,0.3945,2537.2,2536.7,6.99964468]
[1729730841342,3.2078,2537.5,2537.1,2.901584]
[1729730841535,0.39448,2537.4,2537.3,2.901584]
[1729730841737,3.2078,2537.5,2536.9,0.39455]
[1729730842031,3.2078,2537.5,2537.4,2.901584]
[1729730842032,3.60226,2537.5,2537.4,2.901584]
[1729730843039,7.1486,2537.5,2536.6,3.79184468]
[1729730843239,0.39458,2536.7,2536.6,2.901584]
[1729730843636,3.2078,2536.9,2536.6,2.901584]
[1729730843837,0.39457,2536.8,2536.7,2.901584]
[1729730845843,0.39466,2536.2,2536.1,3.2078]
[1729730846139,0.39476,2535.6,2535.3,3.2078]
[1729730846357,3.2078,2536.0,2535.4,2.901584]
[1729730846535,0.39478,2535.4,2535.3,3.2078]
[1729730847045,0.39477,2535.5,2535.3,6.109384]
[1729730847346,0.39477,2535.5,2535.3,3.2078]
[1729730847641,0.39477,2535.5,2535.4,2.901584]
[1729730848039,4.4265136,2535.9,2535.3,3.2078]
[1729730848348,0.39477,2535.5,2535.4,2.901584]
[1729730848648,4.4265136,2535.9,2535.5,2.901584]
[1729730848839,0.39477,2535.5,2535.4,2.901584]
[1729730850043,4.4265136,2535.9,2535.4,2.901584]
[1729730850344,0.39468,2536.1,2535.8,2.901584]
[1729730850547,3.2078,2536.4,2536.0,2.901584]
[1729730850754,5.25341035,2537.5,2536.0,2.901584]
[1729730850755,3.2078,2536.8,2536.3,2.901584]
[1729730851043,3.2078,2537.3,2536.7,4.26726035]
[1729730851251,3.2078,2537.3,2536.8,1.579]
[1729730851440,3.60229,2537.3,2537.2,2.901584]
[1729730852149,1.43102348,2537.6,2537.3,0.39448]
[1729730852455,0.8455,2538.2,2537.3,0.39448]
[1729730852456,3.21288898,2538.0,2537.9,2.901584]
[1729730852950,5.6367844,2538.3,2537.9,2.901584]
[1729730853139,2.4289844,2538.3,2538.2,2.901584]
[1729730854044,3.2078,2539.2,2538.2,0.98588]
[1729730854244,0.39425,2538.9,2538.6,3.2078]
[1729730854438,0.39423,2539.0,2538.6,0.39429]
[1729730854746,3.6334,2539.5,2538.8,3.60205]
[1729730854747,0.3942,2539.2,2538.8,3.60205]
[1729730854950,0.3942,2539.2,2538.8,1.97325]
[1729730854951,0.39421,2539.2,2538.8,1.97325]
[1729730855149,0.39421,2539.2,2538.8,4.7868]
[1729730855354,3.2078,2539.5,2538.2,7.47506035]
[1729730855652,3.2078,2538.8,2538.0,3.2078]
[1729730855863,3.2078,2538.8,2537.8,1.578]
[1729730856151,0.39431,2538.5,2538.0,3.60217]
[1729730856346,0.39431,2538.5,2537.5,4.26726035]
[1729730856347,0.39438,2538.1,2537.7,3.2078]
[1729730856544,4.56903602,2538.7,2537.7,3.2078]
[1729730856545,0.39429,2538.6,2537.8,1.578]
[1729730856743,3.58332602,2538.7,2537.8,1.578]
[1729730856744,3.2078,2538.5,2537.8,1.578]
[1729730856953,3.2078,2538.5,2537.0,0.98632]
[1729730856954,0.39446,2537.5,2537.4,3.2078]
[1729730857250,3.2078,2538.0,2537.2,0.39449]
[1729730857548,3.2078,2538.0,2537.0,1.578]
[1729730857549,4.48826754,2537.9,2537.4,3.2078]